[Event "Early-Titled-Tuesday-Blitz-July-09-2024"]
[Site "Chess.com"]
[Date "2024.07.09"]
[Round "3"]
[White "HajiyevKanan"]
[Black "kripri"]
[Result "0-1"]
[WhiteElo "2553"]
[BlackElo "2335"]
[TimeControl "180+1"]
[EndTime "8:29:32 PDT"]
[Termination "kripri won by checkmate"]

1. c4 {[%clk 0:03:00.9]} 1... Nf6 {[%clk 0:02:59.7]} 2. Nf3 {[%clk 0:03:00.6]}
2... c5 {[%clk 0:02:59.3]} 3. e3 {[%clk 0:03:00.2]} 3... Nc6 {[%clk 0:02:59.5]}
4. Be2 {[%clk 0:03:00.5]} 4... d5 {[%clk 0:02:58.1]} 5. cxd5 {[%clk 0:03:01.4]}
5... Nxd5 {[%clk 0:02:58.5]} 6. O-O {[%clk 0:03:02.3]} 6... g6 {[%clk
0:02:58.4]} 7. a3 {[%clk 0:03:02.9]} 7... Bg7 {[%clk 0:02:59]} 8. d3 {[%clk
0:03:03.4]} 8... O-O {[%clk 0:02:59.1]} 9. Qc2 {[%clk 0:02:59.2]} 9... Qd6
{[%clk 0:02:54.6]} 10. Rd1 {[%clk 0:02:59]} 10... b6 {[%clk 0:02:49.6]} 11. Nbd2
{[%clk 0:02:58.5]} 11... Bb7 {[%clk 0:02:43.4]} 12. Rb1 {[%clk 0:02:57.8]} 12...
Rac8 {[%clk 0:02:42.1]} 13. Nc4 {[%clk 0:02:57.7]} 13... Qd7 {[%clk 0:02:37.2]}
14. Bd2 {[%clk 0:02:57.5]} 14... Rfd8 {[%clk 0:02:36.5]} 15. Be1 {[%clk
0:02:55.3]} 15... b5 {[%clk 0:02:23]} 16. Na5 {[%clk 0:02:53.5]} 16... Ba8
{[%clk 0:02:12.1]} 17. Nb3 {[%clk 0:02:43.6]} 17... Ne5 {[%clk 0:01:55]} 18.
Nxc5 {[%clk 0:02:33.7]} 18... Rxc5 {[%clk 0:01:46.1]} 19. Qxc5 {[%clk
0:02:33.2]} 19... Rc8 {[%clk 0:01:45.6]} 20. Nxe5 {[%clk 0:02:18.7]} 20... Bxe5
{[%clk 0:01:44.2]} 21. Qxc8+ {[%clk 0:01:51.5]} 21... Qxc8 {[%clk 0:01:42.5]}
22. Rdc1 {[%clk 0:01:48.6]} 22... Qb8 {[%clk 0:01:40.2]} 23. h3 {[%clk
0:01:42.6]} 23... Kg7 {[%clk 0:01:23]} 24. d4 {[%clk 0:01:41.3]} 24... Bd6
{[%clk 0:01:17.9]} 25. b4 {[%clk 0:01:39.3]} 25... a6 {[%clk 0:01:15.5]} 26. Bd2
{[%clk 0:01:30.9]} 26... Nf6 {[%clk 0:01:00.1]} 27. Rb2 {[%clk 0:01:20.6]} 27...
Ne4 {[%clk 0:00:52.1]} 28. Be1 {[%clk 0:01:20.2]} 28... Qd8 {[%clk 0:00:44.7]}
29. Rbc2 {[%clk 0:01:18.9]} 29... Bb8 {[%clk 0:00:41]} 30. Rc8 {[%clk
0:01:05.1]} 30... Qd6 {[%clk 0:00:39.3]} 31. g3 {[%clk 0:01:05.4]} 31... Ng5
{[%clk 0:00:33.9]} 32. h4 {[%clk 0:00:55.3]} 32... Nf3+ {[%clk 0:00:25.9]} 33.
Kf1 {[%clk 0:00:54]} 33... Nh2+ {[%clk 0:00:24.5]} 34. Kg1 {[%clk 0:00:53.7]}
34... Qd5 {[%clk 0:00:23.9]} 35. f3 {[%clk 0:00:40.9]} 35... Nxf3+ {[%clk
0:00:23.6]} 36. Kf2 {[%clk 0:00:35.7]} 36... Nxh4 {[%clk 0:00:16.7]} 37. e4
{[%clk 0:00:29.4]} 37... Qxe4 {[%clk 0:00:16.3]} 38. Rxb8 {[%clk 0:00:28.1]}
38... Qxd4+ {[%clk 0:00:14.4]} 39. Kf1 {[%clk 0:00:23.6]} 39... Bg2# {[%clk
0:00:14.6]} 0-1

[Event "Early-Titled-Tuesday-Blitz-July-09-2024"]
[Site "Chess.com"]
[Date "2024.07.09"]
[Round "3"]
[White "tptagain"]
[Black "AcostaPablo"]
[Result "0-1"]
[WhiteElo "3046"]
[BlackElo "2697"]
[TimeControl "180+1"]
[EndTime "8:29:36 PDT"]
[Termination "AcostaPablo won by resignation"]

1. d4 {[%clk 0:03:00.9]} 1... Nf6 {[%clk 0:02:59.2]} 2. Nf3 {[%clk 0:03:01.4]}
2... e6 {[%clk 0:02:59.2]} 3. Bg5 {[%clk 0:03:01.4]} 3... Be7 {[%clk 0:02:57.9]}
4. Nbd2 {[%clk 0:03:01.3]} 4... d5 {[%clk 0:02:55]} 5. e3 {[%clk 0:03:01.3]}
5... O-O {[%clk 0:02:54.1]} 6. Bd3 {[%clk 0:03:01.1]} 6... Nbd7 {[%clk
0:02:54.2]} 7. c3 {[%clk 0:02:59]} 7... b6 {[%clk 0:02:53.4]} 8. O-O {[%clk
0:02:46.9]} 8... Bb7 {[%clk 0:02:53.3]} 9. h3 {[%clk 0:02:46.8]} 9... Ne4 {[%clk
0:02:51.9]} 10. Bf4 {[%clk 0:02:44]} 10... c5 {[%clk 0:02:42.6]} 11. a4 {[%clk
0:02:41.3]} 11... f5 {[%clk 0:02:35.4]} 12. a5 {[%clk 0:02:37.6]} 12... c4
{[%clk 0:02:33.7]} 13. Bxe4 {[%clk 0:02:36.1]} 13... fxe4 {[%clk 0:02:29.1]} 14.
Ne5 {[%clk 0:02:35.2]} 14... bxa5 {[%clk 0:02:08.5]} 15. Qg4 {[%clk 0:02:14.6]}
15... Rf6 {[%clk 0:02:05.1]} 16. Nxd7 {[%clk 0:02:12.7]} 16... Qxd7 {[%clk
0:02:02.5]} 17. Rxa5 {[%clk 0:02:12.8]} 17... Rg6 {[%clk 0:01:56.2]} 18. Qh5
{[%clk 0:02:03.2]} 18... Bd8 {[%clk 0:01:28.6]} 19. Raa1 {[%clk 0:01:47.3]}
19... Bb6 {[%clk 0:01:18.4]} 20. Be5 {[%clk 0:01:45]} 20... Rf8 {[%clk 0:01:15]}
21. f4 {[%clk 0:01:41.6]} 21... Bc6 {[%clk 0:01:04.3]} 22. Qd1 {[%clk 0:00:56]}
22... Qe7 {[%clk 0:00:57.8]} 23. Kh2 {[%clk 0:00:53.1]} 23... Qh4 {[%clk
0:00:46.7]} 24. Qe1 {[%clk 0:00:53.4]} 24... Qh5 {[%clk 0:00:34.6]} 25. Qf2
{[%clk 0:00:51.6]} 25... Rh6 {[%clk 0:00:31.4]} 26. Rfb1 {[%clk 0:00:33.6]}
26... g5 {[%clk 0:00:29.8]} 27. Qg3 {[%clk 0:00:33.7]} 27... Rg6 {[%clk
0:00:28.9]} 28. Qg4 {[%clk 0:00:27.8]} 28... Qxg4 {[%clk 0:00:28.5]} 29. hxg4
{[%clk 0:00:28.1]} 29... gxf4 {[%clk 0:00:29.2]} 30. Bxf4 {[%clk 0:00:22.7]}
30... Rxg4 {[%clk 0:00:27.2]} 31. b3 {[%clk 0:00:20.5]} 31... cxb3 {[%clk
0:00:25.5]} 32. Rxb3 {[%clk 0:00:21.4]} 32... Rgxf4 {[%clk 0:00:24.5]} 33. exf4
{[%clk 0:00:21.4]} 33... Rxf4 {[%clk 0:00:25.1]} 34. Rf1 {[%clk 0:00:21.7]}
34... Rh4+ {[%clk 0:00:24.6]} 35. Kg1 {[%clk 0:00:21.7]} 35... Rg4 {[%clk
0:00:19.2]} 36. Re1 {[%clk 0:00:19.3]} 36... Rg3 {[%clk 0:00:19.3]} 37. Nf1
{[%clk 0:00:19.1]} 37... Bxd4+ {[%clk 0:00:16.7]} 38. Kh2 {[%clk 0:00:16.3]}
38... Rxc3 {[%clk 0:00:17.2]} 39. Rb8+ {[%clk 0:00:13.3]} 39... Kg7 {[%clk
0:00:17.1]} 40. Re2 {[%clk 0:00:11.7]} 40... Be5+ {[%clk 0:00:17.1]} 41. g3
{[%clk 0:00:12.2]} 41... Bxb8 {[%clk 0:00:17.7]} 0-1

[Event "Early-Titled-Tuesday-Blitz-July-09-2024"]
[Site "Chess.com"]
[Date "2024.07.09"]
[Round "3"]
[White "KNVB"]
[Black "EdenDzung06"]
[Result "0-1"]
[WhiteElo "2660"]
[BlackElo "2468"]
[TimeControl "180+1"]
[EndTime "8:29:36 PDT"]
[Termination "EdenDzung06 won on time"]

1. d4 {[%clk 0:03:00.9]} 1... Nf6 {[%clk 0:02:59.5]} 2. Bf4 {[%clk 0:03:00.5]}
2... e6 {[%clk 0:02:59.8]} 3. e3 {[%clk 0:03:00.8]} 3... b6 {[%clk 0:03:00.2]}
4. Nf3 {[%clk 0:02:59.1]} 4... Bb7 {[%clk 0:03:00.6]} 5. h3 {[%clk 0:02:59.4]}
5... Be7 {[%clk 0:03:01]} 6. a4 {[%clk 0:02:58.7]} 6... a5 {[%clk 0:03:00.3]} 7.
Bh2 {[%clk 0:02:39.8]} 7... O-O {[%clk 0:02:58.6]} 8. Be2 {[%clk 0:02:39.2]}
8... d6 {[%clk 0:02:59]} 9. Na3 {[%clk 0:02:37.7]} 9... Re8 {[%clk 0:02:56.7]}
10. O-O {[%clk 0:02:37.9]} 10... Bf8 {[%clk 0:02:56.9]} 11. Re1 {[%clk
0:02:34.4]} 11... Nbd7 {[%clk 0:02:56.9]} 12. Bf1 {[%clk 0:02:19.8]} 12... Qe7
{[%clk 0:02:54.6]} 13. Nb5 {[%clk 0:02:18.9]} 13... Nb8 {[%clk 0:02:47.3]} 14.
c3 {[%clk 0:02:13.3]} 14... Na6 {[%clk 0:02:45]} 15. Nd2 {[%clk 0:02:07.1]}
15... e5 {[%clk 0:02:37.8]} 16. e4 {[%clk 0:01:26.7]} 16... exd4 {[%clk
0:02:20.4]} 17. cxd4 {[%clk 0:01:25.7]} 17... Qd7 {[%clk 0:02:02.4]} 18. d5
{[%clk 0:01:06.9]} 18... Nc5 {[%clk 0:01:56.4]} 19. Qc2 {[%clk 0:00:56.8]} 19...
g6 {[%clk 0:01:49.2]} 20. Nd4 {[%clk 0:00:49.4]} 20... Bg7 {[%clk 0:01:44.4]}
21. Bb5 {[%clk 0:00:48.1]} 21... Qe7 {[%clk 0:01:38.3]} 22. Bxe8 {[%clk
0:00:14.5]} 22... Rxe8 {[%clk 0:01:39.2]} 23. Nb5 {[%clk 0:00:11.6]} 23... Ba6
{[%clk 0:01:31.2]} 24. f3 {[%clk 0:00:04.5]} 24... Nh5 {[%clk 0:01:26.3]} 25.
Kh1 {[%clk 0:00:02.1]} 25... Be5 {[%clk 0:01:23]} 26. Nf1 {[%clk 0:00:02.5]}
26... Bxh2 {[%clk 0:01:18]} 27. Kxh2 {[%clk 0:00:03.4]} 27... Nf4 {[%clk
0:01:07.4]} 28. Qd2 {[%clk 0:00:01.8]} 28... Nfd3 {[%clk 0:00:56.3]} 29. Re3
{[%clk 0:00:01.4]} 29... Qe5+ {[%clk 0:00:54.8]} 30. Kh1 {[%clk 0:00:01.7]}
30... Nxb2 {[%clk 0:00:52.8]} 31. Rb1 {[%clk 0:00:01.6]} 31... Nc4 {[%clk
0:00:52.8]} 32. Qc3 {[%clk 0:00:02.1]} 32... Nxe3 {[%clk 0:00:52.4]} 33. Qxe5
{[%clk 0:00:01.5]} 33... Rxe5 {[%clk 0:00:50.7]} 34. Nxe3 {[%clk 0:00:02.4]}
34... Bxb5 {[%clk 0:00:49.4]} 35. axb5 {[%clk 0:00:03.3]} 35... Re8 {[%clk
0:00:46.8]} 36. g4 {[%clk 0:00:02.1]} 36... a4 {[%clk 0:00:42.7]} 37. Ra1 {[%clk
0:00:01.6]} 37... Ra8 {[%clk 0:00:42.1]} 38. Ra3 {[%clk 0:00:01.9]} 38... Ra5
{[%clk 0:00:37.7]} 39. Kg2 {[%clk 0:00:01.3]} 39... Rxb5 {[%clk 0:00:38]} 40.
Ra1 {[%clk 0:00:01]} 40... Rb3 {[%clk 0:00:37.3]} 41. Kf2 {[%clk 0:00:01.4]}
41... a3 {[%clk 0:00:36.9]} 42. g5 {[%clk 0:00:01.9]} 42... Rb2+ {[%clk
0:00:37.2]} 43. Kg3 {[%clk 0:00:02.1]} 43... a2 {[%clk 0:00:37.7]} 0-1

[Event "Early-Titled-Tuesday-Blitz-July-09-2024"]
[Site "Chess.com"]
[Date "2024.07.09"]
[Round "3"]
[White "vladgoncharov"]
[Black "Zheenbekov86"]
[Result "0-1"]
[WhiteElo "2644"]
[BlackElo "2456"]
[TimeControl "180+1"]
[EndTime "8:29:36 PDT"]
[Termination "Zheenbekov86 won on time"]

1. d4 {[%clk 0:03:00.9]} 1... Nf6 {[%clk 0:02:56.1]} 2. c4 {[%clk 0:02:59.9]}
2... e6 {[%clk 0:02:56.3]} 3. Nc3 {[%clk 0:02:59.6]} 3... Bb4 {[%clk 0:02:55.7]}
4. e3 {[%clk 0:02:59.4]} 4... O-O {[%clk 0:02:54.9]} 5. Ne2 {[%clk 0:02:58.7]}
5... d5 {[%clk 0:02:52.2]} 6. a3 {[%clk 0:02:58.3]} 6... Be7 {[%clk 0:02:51.8]}
7. Ng3 {[%clk 0:02:54.7]} 7... b6 {[%clk 0:02:34.7]} 8. cxd5 {[%clk 0:02:43.3]}
8... exd5 {[%clk 0:02:26.9]} 9. b4 {[%clk 0:02:37.3]} 9... c5 {[%clk 0:02:21.7]}
10. bxc5 {[%clk 0:02:23.5]} 10... bxc5 {[%clk 0:02:21.4]} 11. Be2 {[%clk
0:02:23]} 11... cxd4 {[%clk 0:02:21.3]} 12. Qxd4 {[%clk 0:02:17.8]} 12... Nc6
{[%clk 0:02:20.6]} 13. Qd1 {[%clk 0:02:17.8]} 13... d4 {[%clk 0:02:19.7]} 14.
Nb5 {[%clk 0:02:02.4]} 14... dxe3 {[%clk 0:02:08.6]} 15. Bxe3 {[%clk 0:02:01.4]}
15... Nd5 {[%clk 0:02:07.6]} 16. Bd2 {[%clk 0:01:30.3]} 16... a6 {[%clk
0:01:55.4]} 17. Nc3 {[%clk 0:01:26.2]} 17... Nd4 {[%clk 0:01:54.2]} 18. O-O
{[%clk 0:01:10.1]} 18... Bb7 {[%clk 0:01:37.6]} 19. Re1 {[%clk 0:01:04.1]} 19...
Bf6 {[%clk 0:01:35.7]} 20. Nxd5 {[%clk 0:01:02.4]} 20... Qxd5 {[%clk 0:01:33.9]}
21. Bf1 {[%clk 0:00:57.3]} 21... Nb3 {[%clk 0:01:27.4]} 22. Rb1 {[%clk
0:00:49.2]} 22... Nxd2 {[%clk 0:01:25]} 23. Rxb7 {[%clk 0:00:48.9]} 23... Qxb7
{[%clk 0:01:22.2]} 24. Qxd2 {[%clk 0:00:48.9]} 24... Rad8 {[%clk 0:01:21.3]} 25.
Qf4 {[%clk 0:00:42.6]} 25... Rfe8 {[%clk 0:01:16.1]} 26. Rxe8+ {[%clk
0:00:37.2]} 26... Rxe8 {[%clk 0:01:15.8]} 27. Nh5 {[%clk 0:00:37]} 27... Be5
{[%clk 0:01:14.9]} 28. Qc4 {[%clk 0:00:32.7]} 28... g6 {[%clk 0:01:12.2]} 29.
Ng3 {[%clk 0:00:31.2]} 29... Bxg3 {[%clk 0:01:11.6]} 30. hxg3 {[%clk 0:00:31.7]}
30... a5 {[%clk 0:01:09.9]} 31. g4 {[%clk 0:00:27.9]} 31... Qe7 {[%clk
0:01:08.5]} 32. Qb5 {[%clk 0:00:25.2]} 32... Qe5 {[%clk 0:01:00.9]} 33. Qd7
{[%clk 0:00:22.7]} 33... Re7 {[%clk 0:00:57.9]} 34. Qd8+ {[%clk 0:00:21.3]}
34... Kg7 {[%clk 0:00:57.9]} 35. g3 {[%clk 0:00:21.4]} 35... Rc7 {[%clk
0:00:54.9]} 36. a4 {[%clk 0:00:15.4]} 36... Rc3 {[%clk 0:00:53]} 37. Qb6 {[%clk
0:00:06.9]} 37... Qc5 {[%clk 0:00:52.2]} 38. Qb8 {[%clk 0:00:05.3]} 38... Rf3
{[%clk 0:00:40.7]} 39. Qb2+ {[%clk 0:00:01.6]} 39... Kg8 {[%clk 0:00:35.9]} 40.
Kg2 {[%clk 0:00:01.2]} 40... Rc3 {[%clk 0:00:34.7]} 0-1

[Event "Early-Titled-Tuesday-Blitz-July-09-2024"]
[Site "Chess.com"]
[Date "2024.07.09"]
[Round "3"]
[White "GMAkobianSTL"]
[Black "Oleg_Papayan"]
[Result "0-1"]
[WhiteElo "2826"]
[BlackElo "2578"]
[TimeControl "180+1"]
[EndTime "8:29:37 PDT"]
[Termination "Oleg_Papayan won by resignation"]

1. d4 {[%clk 0:03:00.9]} 1... d5 {[%clk 0:02:59.9]} 2. c4 {[%clk 0:03:01]} 2...
dxc4 {[%clk 0:03:00.8]} 3. e3 {[%clk 0:03:00.8]} 3... Nf6 {[%clk 0:03:01.2]} 4.
Bxc4 {[%clk 0:02:59.4]} 4... e6 {[%clk 0:03:01.9]} 5. Nf3 {[%clk 0:02:59.2]}
5... a6 {[%clk 0:03:02.4]} 6. O-O {[%clk 0:02:59]} 6... c5 {[%clk 0:03:03]} 7.
dxc5 {[%clk 0:02:58.2]} 7... Bxc5 {[%clk 0:03:03.3]} 8. Qxd8+ {[%clk 0:02:57]}
8... Kxd8 {[%clk 0:03:04.2]} 9. a3 {[%clk 0:02:55.2]} 9... b5 {[%clk 0:02:57]}
10. Be2 {[%clk 0:02:54.6]} 10... Bb7 {[%clk 0:02:56.8]} 11. b4 {[%clk
0:02:54.2]} 11... Bd6 {[%clk 0:02:54]} 12. Bb2 {[%clk 0:02:53.6]} 12... Ke7
{[%clk 0:02:52.9]} 13. Nbd2 {[%clk 0:02:52.5]} 13... Nbd7 {[%clk 0:02:49.5]} 14.
Nb3 {[%clk 0:02:51.5]} 14... Rhc8 {[%clk 0:02:35.6]} 15. Rfc1 {[%clk 0:02:50]}
15... Bd5 {[%clk 0:02:26.8]} 16. Nfd2 {[%clk 0:02:48.3]} 16... Nb6 {[%clk
0:02:15.5]} 17. f3 {[%clk 0:02:45.2]} 17... Na4 {[%clk 0:02:01.6]} 18. Rxc8
{[%clk 0:02:34]} 18... Rxc8 {[%clk 0:02:00.9]} 19. Rc1 {[%clk 0:02:32.5]} 19...
Rxc1+ {[%clk 0:01:52.4]} 20. Bxc1 {[%clk 0:02:33.4]} 20... Be5 {[%clk
0:01:21.9]} 21. e4 {[%clk 0:02:25.4]} 21... Bxb3 {[%clk 0:01:00.5]} 22. Nxb3
{[%clk 0:02:24.7]} 22... Nd7 {[%clk 0:00:59.8]} 23. f4 {[%clk 0:02:14.7]} 23...
Bb2 {[%clk 0:00:57]} 24. Bxb2 {[%clk 0:02:12.4]} 24... Nxb2 {[%clk 0:00:57.9]}
25. Kf2 {[%clk 0:02:12.4]} 25... Nb6 {[%clk 0:00:45.5]} 26. Na5 {[%clk
0:02:11.7]} 26... f6 {[%clk 0:00:35.2]} 27. Ke3 {[%clk 0:01:56.7]} 27... Kd6
{[%clk 0:00:34.9]} 28. Nb7+ {[%clk 0:01:54]} 28... Ke7 {[%clk 0:00:29.6]} 29.
Na5 {[%clk 0:01:44.6]} 29... e5 {[%clk 0:00:25.8]} 30. fxe5 {[%clk 0:01:43.2]}
30... fxe5 {[%clk 0:00:26.7]} 31. Kd2 {[%clk 0:01:43.2]} 31... Kd6 {[%clk
0:00:23.9]} 32. Kc2 {[%clk 0:01:37.2]} 32... N2a4 {[%clk 0:00:14.6]} 33. Bg4
{[%clk 0:01:36.9]} 33... h6 {[%clk 0:00:07.2]} 34. Bc8 {[%clk 0:01:36]} 34...
Nxc8 {[%clk 0:00:06.5]} 35. Nb7+ {[%clk 0:01:28.1]} 35... Kc7 {[%clk 0:00:05.5]}
36. Na5 {[%clk 0:01:27.6]} 36... Nd6 {[%clk 0:00:05.1]} 37. Kd3 {[%clk 0:01:27]}
37... Nb7 {[%clk 0:00:05.2]} 38. Nb3 {[%clk 0:01:26.8]} 38... Nb2+ {[%clk
0:00:05.6]} 39. Kc3 {[%clk 0:01:18.9]} 39... Nc4 {[%clk 0:00:06.5]} 40. a4
{[%clk 0:01:19.2]} 40... bxa4 {[%clk 0:00:07.4]} 41. Nc1 {[%clk 0:01:02.5]}
41... Ncd6 {[%clk 0:00:07.4]} 42. Kd3 {[%clk 0:01:00.8]} 42... Nd8 {[%clk
0:00:07.4]} 43. Na2 {[%clk 0:00:58]} 43... Nc6 {[%clk 0:00:07.9]} 44. g4 {[%clk
0:00:52]} 44... g5 {[%clk 0:00:07.4]} 45. h3 {[%clk 0:00:51.9]} 45... Kb6 {[%clk
0:00:07.8]} 0-1

[Event "Early-Titled-Tuesday-Blitz-July-09-2024"]
[Site "Chess.com"]
[Date "2024.07.09"]
[Round "3"]
[White "deribas12345"]
[Black "RCone"]
[Result "1/2-1/2"]
[WhiteElo "2633"]
[BlackElo "2428"]
[TimeControl "180+1"]
[EndTime "8:29:37 PDT"]
[Termination "Game drawn by repetition"]

1. d4 {[%clk 0:03:00.9]} 1... d6 {[%clk 0:02:55.4]} 2. c4 {[%clk 0:03:00.5]}
2... Nf6 {[%clk 0:02:54.4]} 3. Nc3 {[%clk 0:03:00.6]} 3... g6 {[%clk 0:02:54.6]}
4. e4 {[%clk 0:03:00.7]} 4... Bg7 {[%clk 0:02:55]} 5. Nge2 {[%clk 0:03:00.8]}
5... O-O {[%clk 0:02:55.4]} 6. Ng3 {[%clk 0:03:00.9]} 6... e5 {[%clk 0:02:54.5]}
7. d5 {[%clk 0:03:00.9]} 7... c6 {[%clk 0:02:54.7]} 8. Be2 {[%clk 0:03:00.7]}
8... cxd5 {[%clk 0:02:53.4]} 9. cxd5 {[%clk 0:03:01.6]} 9... Na6 {[%clk
0:02:52.2]} 10. O-O {[%clk 0:03:01]} 10... Nc5 {[%clk 0:02:51.3]} 11. b4 {[%clk
0:03:00.6]} 11... Ncd7 {[%clk 0:02:51.7]} 12. Rb1 {[%clk 0:03:00.9]} 12... a5
{[%clk 0:02:35.5]} 13. a3 {[%clk 0:02:58.8]} 13... axb4 {[%clk 0:02:35.9]} 14.
axb4 {[%clk 0:02:59.7]} 14... Nb6 {[%clk 0:02:34.8]} 15. Be3 {[%clk 0:02:54.8]}
15... Bd7 {[%clk 0:02:34.1]} 16. f3 {[%clk 0:02:51.6]} 16... Rc8 {[%clk
0:02:28.7]} 17. Nb5 {[%clk 0:02:49.7]} 17... Bxb5 {[%clk 0:02:23.4]} 18. Bxb5
{[%clk 0:02:49]} 18... Nc4 {[%clk 0:02:16.5]} 19. Bf2 {[%clk 0:02:47.4]} 19...
Na3 {[%clk 0:02:15.3]} 20. Qd3 {[%clk 0:02:34.2]} 20... Nxb1 {[%clk 0:02:14.2]}
21. Rxb1 {[%clk 0:02:35.1]} 21... Qc7 {[%clk 0:02:09.6]} 22. Nf1 {[%clk
0:02:28]} 22... Bh6 {[%clk 0:02:08.1]} 23. Ne3 {[%clk 0:02:25.4]} 23... Bxe3
{[%clk 0:02:03.5]} 24. Bxe3 {[%clk 0:02:25.3]} 24... Qc3 {[%clk 0:01:56.1]} 25.
Qe2 {[%clk 0:02:22.6]} 25... Qc2 {[%clk 0:01:46]} 26. Qf1 {[%clk 0:02:20.9]}
26... Nh5 {[%clk 0:01:42.2]} 27. g3 {[%clk 0:02:09.7]} 27... f5 {[%clk
0:01:37.6]} 28. Bd7 {[%clk 0:01:59.1]} 28... Rc3 {[%clk 0:01:28.5]} 29. Bh6
{[%clk 0:01:57.2]} 29... Ra8 {[%clk 0:01:12.2]} 30. Rc1 {[%clk 0:01:14.9]} 30...
Qb3 {[%clk 0:01:01.5]} 31. Rb1 {[%clk 0:01:12.8]} 31... Qa3 {[%clk 0:00:46.3]}
32. exf5 {[%clk 0:00:30.3]} 32... Rxf3 {[%clk 0:00:37.3]} 33. Qc1 {[%clk
0:00:13.5]} 33... Rxg3+ {[%clk 0:00:36]} 34. hxg3 {[%clk 0:00:11.9]} 34... Qxg3+
{[%clk 0:00:36.9]} 35. Kh1 {[%clk 0:00:10.7]} 35... Qh4+ {[%clk 0:00:27.1]} 36.
Kg1 {[%clk 0:00:10.4]} 36... Qg3+ {[%clk 0:00:23.1]} 37. Kf1 {[%clk 0:00:09.4]}
37... Qf3+ {[%clk 0:00:15.5]} 38. Kg1 {[%clk 0:00:09.2]} 38... Qg3+ {[%clk
0:00:11.6]} 1/2-1/2

[Event "Early-Titled-Tuesday-Blitz-July-09-2024"]
[Site "Chess.com"]
[Date "2024.07.09"]
[Round "3"]
[White "coalescenet"]
[Black "AA95"]
[Result "1-0"]
[WhiteElo "2330"]
[BlackElo "2510"]
[TimeControl "180+1"]
[EndTime "8:29:38 PDT"]
[Termination "coalescenet won on time"]

1. d4 {[%clk 0:02:59.4]} 1... c6 {[%clk 0:02:59.7]} 2. c4 {[%clk 0:02:54.8]}
2... d5 {[%clk 0:02:59.5]} 3. cxd5 {[%clk 0:02:55.5]} 3... cxd5 {[%clk
0:03:00.3]} 4. Nf3 {[%clk 0:02:56]} 4... Nc6 {[%clk 0:03:00.6]} 5. Nc3 {[%clk
0:02:56.7]} 5... Nf6 {[%clk 0:03:00.6]} 6. Ne5 {[%clk 0:02:57.3]} 6... Bd7
{[%clk 0:02:55.8]} 7. Nxd7 {[%clk 0:02:47.5]} 7... Qxd7 {[%clk 0:02:55.7]} 8.
Bf4 {[%clk 0:02:47.3]} 8... a6 {[%clk 0:02:55]} 9. e3 {[%clk 0:02:47.4]} 9... e6
{[%clk 0:02:55.2]} 10. Bd3 {[%clk 0:02:47.3]} 10... Bb4 {[%clk 0:02:55.2]} 11.
O-O {[%clk 0:02:46.6]} 11... Bxc3 {[%clk 0:02:55.6]} 12. bxc3 {[%clk 0:02:46.7]}
12... O-O {[%clk 0:02:55.5]} 13. c4 {[%clk 0:02:43.9]} 13... dxc4 {[%clk
0:02:45.8]} 14. Bxc4 {[%clk 0:02:44.2]} 14... b5 {[%clk 0:02:46.1]} 15. Be2
{[%clk 0:02:42.2]} 15... Rfe8 {[%clk 0:02:45.7]} 16. Bf3 {[%clk 0:02:41.8]}
16... Rad8 {[%clk 0:02:35.4]} 17. Qc1 {[%clk 0:02:29.8]} 17... Nd5 {[%clk
0:02:34.3]} 18. Bg3 {[%clk 0:02:26.8]} 18... Na5 {[%clk 0:02:24.5]} 19. Qa3
{[%clk 0:02:19.1]} 19... Nc4 {[%clk 0:02:24.6]} 20. Qd3 {[%clk 0:02:10.3]} 20...
Rc8 {[%clk 0:02:14.5]} 21. Rfb1 {[%clk 0:02:03.6]} 21... Na3 {[%clk 0:01:48.6]}
22. Qxa3 {[%clk 0:01:59.8]} 22... Rc6 {[%clk 0:01:23.4]} 23. Rc1 {[%clk
0:01:50.2]} 23... Rec8 {[%clk 0:01:22.7]} 24. h4 {[%clk 0:01:49.8]} 24... b4
{[%clk 0:01:20.8]} 25. Qb2 {[%clk 0:01:48.6]} 25... a5 {[%clk 0:01:17]} 26. a3
{[%clk 0:01:35.6]} 26... Rxc1+ {[%clk 0:00:47.1]} 27. Rxc1 {[%clk 0:01:33.8]}
27... Rxc1+ {[%clk 0:00:47.6]} 28. Qxc1 {[%clk 0:01:33.6]} 28... b3 {[%clk
0:00:47.4]} 29. e4 {[%clk 0:01:13.4]} 29... Nb6 {[%clk 0:00:42.2]} 30. d5 {[%clk
0:01:12.7]} 30... Qb5 {[%clk 0:00:35.4]} 31. dxe6 {[%clk 0:01:03.4]} 31... b2
{[%clk 0:00:28.5]} 32. exf7+ {[%clk 0:01:00.8]} 32... Kxf7 {[%clk 0:00:28.3]}
33. Qb1 {[%clk 0:01:00.4]} 33... Nc4 {[%clk 0:00:13.8]} 34. e5 {[%clk
0:00:58.4]} 34... Nd2 {[%clk 0:00:10.4]} 35. Qf5+ {[%clk 0:00:55]} 35... Ke8
{[%clk 0:00:09.4]} 36. Qc8+ {[%clk 0:00:47.2]} 36... Kf7 {[%clk 0:00:09.6]} 37.
e6+ {[%clk 0:00:42]} 37... Kf6 {[%clk 0:00:02.7]} 38. Bc7 {[%clk 0:00:22]} 38...
b1=Q+ {[%clk 0:00:02]} 39. Kh2 {[%clk 0:00:22.5]} 39... Kg6 {[%clk 0:00:01.8]}
40. e7 {[%clk 0:00:20.5]} 1-0

[Event "Early-Titled-Tuesday-Blitz-July-09-2024"]
[Site "Chess.com"]
[Date "2024.07.09"]
[Round "3"]
[White "jasrom"]
[Black "Zurability"]
[Result "1-0"]
[WhiteElo "2348"]
[BlackElo "2686"]
[TimeControl "180+1"]
[EndTime "8:29:42 PDT"]
[Termination "jasrom won by checkmate"]

1. e4 {[%clk 0:02:55.2]} 1... c5 {[%clk 0:02:59.7]} 2. Nc3 {[%clk 0:02:54.6]}
2... Nc6 {[%clk 0:02:56.9]} 3. f4 {[%clk 0:02:54.9]} 3... e6 {[%clk 0:02:56.2]}
4. Nf3 {[%clk 0:02:55.2]} 4... a6 {[%clk 0:02:56.8]} 5. g3 {[%clk 0:02:50.9]}
5... d5 {[%clk 0:02:56.7]} 6. d3 {[%clk 0:02:47]} 6... Nf6 {[%clk 0:02:51.3]} 7.
Qe2 {[%clk 0:02:36.1]} 7... dxe4 {[%clk 0:01:53.9]} 8. dxe4 {[%clk 0:02:37]}
8... b5 {[%clk 0:01:53.6]} 9. Bg2 {[%clk 0:02:31.5]} 9... Bb7 {[%clk 0:01:53.8]}
10. O-O {[%clk 0:02:20.3]} 10... b4 {[%clk 0:01:32.4]} 11. Nd1 {[%clk
0:02:09.5]} 11... Be7 {[%clk 0:01:32.4]} 12. Nf2 {[%clk 0:02:07.5]} 12... O-O
{[%clk 0:01:31.3]} 13. Rd1 {[%clk 0:01:55.7]} 13... Qb6 {[%clk 0:01:18.2]} 14.
Be3 {[%clk 0:01:50.7]} 14... a5 {[%clk 0:01:17.7]} 15. g4 {[%clk 0:01:48.9]}
15... Ba6 {[%clk 0:01:09.5]} 16. Qe1 {[%clk 0:01:48.2]} 16... Rfd8 {[%clk
0:01:09.8]} 17. g5 {[%clk 0:01:47.8]} 17... Nh5 {[%clk 0:01:00.5]} 18. Ng4
{[%clk 0:01:23.3]} 18... Nd4 {[%clk 0:00:57]} 19. Qf2 {[%clk 0:01:18]} 19...
Ne2+ {[%clk 0:00:39.2]} 20. Kh1 {[%clk 0:01:13.5]} 20... Nexf4 {[%clk
0:00:37.1]} 21. Nfe5 {[%clk 0:00:55.3]} 21... Bxg5 {[%clk 0:00:35.5]} 22. Bxc5
{[%clk 0:00:48.2]} 22... Qc7 {[%clk 0:00:31.1]} 23. Bb6 {[%clk 0:00:48]} 23...
Qb7 {[%clk 0:00:16.4]} 24. Bxd8 {[%clk 0:00:40.5]} 24... Bxd8 {[%clk 0:00:17]}
25. Rd7 {[%clk 0:00:32.5]} 25... Qb5 {[%clk 0:00:12.6]} 26. Rxf7 {[%clk
0:00:26]} 26... Bb6 {[%clk 0:00:13]} 27. Qf3 {[%clk 0:00:18.3]} 27... Nxg2
{[%clk 0:00:05.7]} 28. Qxg2 {[%clk 0:00:11.4]} 28... Bd4 {[%clk 0:00:03.9]} 29.
Nh6+ {[%clk 0:00:05.3]} 29... Kh8 {[%clk 0:00:03.8]} 30. Nd7 {[%clk 0:00:03.3]}
30... gxh6 {[%clk 0:00:02.3]} 31. Re1 {[%clk 0:00:02.2]} 31... Qg5 {[%clk
0:00:02.9]} 32. Qf3 {[%clk 0:00:01.7]} 32... Ng7 {[%clk 0:00:03.4]} 33. Rf8+
{[%clk 0:00:01.9]} 33... Rxf8 {[%clk 0:00:03.2]} 34. Qxf8# {[%clk 0:00:02.8]}
1-0